bitfinex-derivatives/quotes_SOLF0:USTF0_20250409
["timestamp","ask_amount","ask_price","bid_price","bid_amount"]
[1744175108528,9.497,105.39,105.36,9.4991]
[1744175109032,44.06,105.4,105.36,9.4991]
[1744175109230,0.0616871,105.39,105.36,9.56367125]
[1744175109531,0.0616871,105.39,105.36,0.06457125]
[1744175109734,12.1465871,105.39,105.36,0.06457125]
[1744175110027,12.1465871,105.39,105.31,65.9727]
[1744175110222,12.0849,105.39,105.3,44.06]
[1744175111235,0.06607127,105.36,105.35,9.4999]
[1744175112633,0.06607127,105.36,105.34,9.56766419]
[1744175113734,0.06607127,105.36,105.35,9.5005]
[1744175116226,545.44,105.43,105.39,9.4965]
[1744175116431,9.4946,105.42,105.39,9.4965]
[1744175116634,44.06,105.43,105.36,44.06]
[1744175116838,12.2409,105.45,105.37,31.2485881]
[1744175117132,12.2409,105.45,105.37,35.5452881]
[1744175117532,0.05995472,105.42,105.4,0.06040839]
[1744175117935,0.05995472,105.42,105.4,9.55580839]
[1744175118232,0.05995472,105.42,105.4,0.06040839]
[1744175118637,9.4951,105.41,105.34,44.06]
[1744175118826,44.06,105.43,105.34,44.06]
[1744175119935,0.06921347,105.4,105.38,9.4971]
[1744175120335,0.06921347,105.4,105.39,9.4969]
[1744175121229,1.347e-05,105.4,105.39,9.4969]
[1744175121637,1.347e-05,105.4,105.39,28.94811637]
[1744175122531,1.347e-05,105.4,105.39,9.4969]
[1744175123124,1.347e-05,105.4,105.38,9.56027614]
[1744175123526,9.49641347,105.4,105.38,0.06297614]
[1744175123733,44.04001347,105.4,105.38,0.06297614]
[1744175124032,53.53641347,105.4,105.38,0.06297614]
[1744175124430,9.4969,105.39,105.38,0.06297614]
[1744175124631,44.04001347,105.4,105.38,0.06297614]
[1744175125525,44.04001347,105.4,105.39,9.4969]
[1744175127033,44.04001347,105.4,105.38,9.56027614]
[1744175127743,1.347e-05,105.4,105.39,9.4969]
[1744175129326,1.347e-05,105.4,105.39,13.4394]
[1744175129733,1.347e-05,105.4,105.39,9.4969]
[1744175130234,1.347e-05,105.4,105.38,9.56027614]
[1744175130538,1.347e-05,105.4,105.38,0.06297614]
[1744175130737,1.347e-05,105.4,105.39,9.4969]
[1744175132938,1.347e-05,105.4,105.38,0.06297614]
[1744175133939,1.347e-05,105.4,105.39,9.4969]
[1744175134842,31.14425827,105.49,105.4,31.14425827]
[1744175134843,56.2714,105.49,105.4,31.14425827]
[1744175135057,44.0,105.49,105.42,31.14425827]
[1744175135234,52.38546142,105.5,105.43,44.0]
[1744175135541,9.4881,105.49,105.44,8.1225]
[1744175135743,52.38546142,105.5,105.44,8.1225]
[1744175135941,0.051382,105.48,105.45,0.07283318]
[1744175136142,0.051382,105.48,105.46,9.4901]
[1744175136443,0.051382,105.48,105.45,0.07283318]
[1744175136746,9.540182,105.48,105.45,9.56373318]
[1744175137044,0.051382,105.48,105.45,0.07283318]
[1744175137639,0.051382,105.48,105.45,62.07283318]
[1744175137940,0.051382,105.48,105.45,0.07283318]
[1744175138841,9.4902,105.47,105.45,0.07283318]
[1744175139047,43.98,105.46,105.4,52.0506]
[1744175139342,43.98,105.46,105.41,9.4947]
[1744175139343,9.4927,105.44,105.41,9.4947]
[1744175139543,43.98,105.46,105.41,9.4947]
[1744175139736,43.98,105.46,105.37,52.0453]
[1744175140131,43.98,105.46,105.39,9.4964]
[1744175140338,0.0616071,105.43,105.4,0.06836565]
[1744175140533,44.0416071,105.43,105.4,0.06836565]
[1744175140742,53.5356071,105.43,105.4,0.06836565]
[1744175141145,44.0416071,105.43,105.4,0.06836565]
[1744175141344,9.4942,105.42,105.4,0.06836565]
[1744175141644,44.0416071,105.43,105.4,0.06836565]
[1744175141844,13.4726,105.42,105.4,0.06836565]
[1744175142651,8.1647,105.42,105.34,8.0653]
[1744175142850,4.251,105.41,105.34,8.0653]
[1744175143048,53.4768,105.4,105.36,9.4988]
[1744175143255,43.98,105.4,105.34,4.0377]
[1744175143645,9.4973,105.39,105.36,9.4994]
[1744175143845,0.06423217,105.38,105.36,9.56489974]
[1744175144043,0.06423217,105.38,105.36,0.06549974]
[1744175144347,75.12425827,105.37,105.29,4.2582]
[1744175144544,75.12425827,105.37,105.26,43.98]
[1744175144747,31.14425827,105.35,105.25,110.857526]
[1744175144954,31.14425827,105.33,105.25,102.541326]
[1744175145553,0.06830069,105.3,105.28,0.06433734]
[1744175145750,0.06830069,105.3,105.25,102.541326]
[1744175145751,44.04830069,105.3,105.25,102.541326]
[1744175146253,53.55360069,105.3,105.26,9.5078]
[1744175146449,44.04830069,105.3,105.25,102.541326]
[1744175147148,44.04830069,105.3,105.26,0.05976248]
[1744175148154,44.04830069,105.3,105.29,9.5059]
[1744175148649,0.06830069,105.3,105.29,9.5059]
[1744175148851,0.06830069,105.3,105.28,9.57058879]
[1744175149247,53.57340069,105.3,105.28,0.06408879]
[1744175149448,53.57340069,105.3,105.22,48.2582]
[1744175149645,53.5051,105.3,105.26,9.5084]
[1744175149954,53.5051,105.3,105.22,48.2582]
[1744175150555,0.06123114,105.27,105.25,0.06957847]
[1744175151159,0.06123114,105.27,105.26,9.5086]
[1744175151553,3.114e-05,105.27,105.26,9.5086]
[1744175157965,47.9548,105.33,105.26,40.64425827]
[1744175158264,43.98,105.33,105.27,3.9466]
[1744175158468,43.98,105.33,105.31,9.5037]
[1744175158870,43.98,105.33,105.28,43.98]
[1744175159071,44.04382857,105.33,105.31,0.06030046]
[1744175159267,44.04382857,105.33,105.28,9.5064]
[1744175159268,44.04382857,105.33,105.26,8.1593]
[1744175159567,44.04382857,105.33,105.3,9.5045]
[1744175159568,43.98,105.33,105.3,9.5045]
[1744175159769,43.98,105.33,105.26,8.1593]
[1744175160469,0.06333241,105.31,105.28,0.06846848]
[1744175160867,0.06333241,105.31,105.29,9.5052]
[1744175161369,0.06333241,105.31,105.3,9.505]
[1744175162772,0.06333241,105.31,105.29,9.5056]
[1744175163081,0.06333241,105.31,105.28,0.06846848]
[1744175163579,0.06333241,105.31,105.3,9.505]
[1744175164279,0.06333241,105.31,105.29,9.5055]
[1744175164465,0.06333241,105.31,105.28,0.06846848]
[1744175165076,43.98,105.3,105.28,0.06846848]
[1744175165278,51.9771,105.3,105.2,75.12425827]
[1744175165471,9.5073,105.28,105.2,43.98]
[1744175165668,43.98,105.27,105.2,43.98]
[1744175166065,43.98,105.27,105.25,9.5087]
[1744175166273,43.98,105.27,105.2,43.98]
[1744175166475,0.06289029,105.27,105.25,0.07026006]
[1744175166776,0.06289029,105.27,105.26,9.5086]
[1744175167575,9.029e-05,105.27,105.26,9.5086]
[1744175167775,9.029e-05,105.27,105.25,0.07026006]
[1744175168679,9.029e-05,105.27,105.26,9.5086]
[1744175169384,9.029e-05,105.27,105.25,0.07026006]
[1744175170082,9.50779029,105.27,105.25,0.07026006]
[1744175171286,44.0,105.26,105.25,0.07026006]
[1744175171882,44.0,105.26,105.25,9.57976006]
[1744175172180,44.0,105.26,105.25,0.07026006]
[1744175172381,44.0,105.26,105.19,51.8582]
[1744175172382,9.5121,105.23,105.19,9.5144]
[1744175172585,44.0,105.23,105.15,52.09]
[1744175172978,44.0,105.23,105.18,9.5151]
[1744175173583,0.06985123,105.22,105.19,0.06511482]
[1744175173987,0.06985123,105.22,105.19,9.57961482]
[1744175174292,0.06985123,105.22,105.19,0.06511482]
[1744175174481,0.06985123,105.22,105.19,9.57951482]
[1744175174787,0.06985123,105.22,105.19,0.06511482]
[1744175174982,9.58255123,105.22,105.19,9.58001482]
[1744175175785,9.5133,105.21,105.19,0.06511482]
[1744175175989,0.06985123,105.22,105.19,0.06511482]
[1744175176178,44.0,105.21,105.19,0.06511482]
[1744175176377,4.2474,105.2,105.16,9.5172]
[1744175176578,4.2474,105.2,105.11,44.0]
[1744175176782,3.8834,105.19,105.11,75.14425827]
[1744175176984,4.2474,105.2,105.13,31.14425827]
[1744175177183,4.2474,105.2,105.14,48.1422]
[1744175177489,0.05976128,105.18,105.17,9.5161]
[1744175178587,0.05976128,105.18,105.16,0.06785998]
[1744175178781,44.07976128,105.18,105.16,0.06785998]
[1744175181093,0.05976128,105.18,105.16,0.06785998]
[1744175181595,0.05976128,105.18,105.17,9.5167]
[1744175182387,0.05976128,105.18,105.16,0.06785998]
[1744175182595,53.59616128,105.18,105.16,0.06785998]
[1744175182801,44.07976128,105.18,105.16,0.06785998]
[1744175183190,9.5167,105.17,105.12,62.0]
[1744175183386,13.3781,105.17,105.12,62.0]
[1744175183582,13.3781,105.17,105.13,9.5197]
[1744175183785,9.5191,105.15,105.09,3.9777]
[1744175183988,44.02,105.15,105.09,3.9777]
[1744175184187,44.02,105.15,105.12,9.5207]
[1744175184494,0.07144647,105.13,105.12,9.5207]
[1744175184694,0.07144647,105.13,105.11,9.5918238]
[1744175185792,0.07144647,105.13,105.11,0.0701238]
[1744175185993,9.59244647,105.13,105.11,0.0701238]
[1744175186295,0.07144647,105.13,105.11,9.5921238]
[1744175186987,0.07144647,105.13,105.12,9.5213]
[1744175188796,0.07144647,105.13,105.11,0.0701238]
[1744175188989,44.0,105.12,105.05,7.329]
[1744175189215,44.0,105.12,105.03,31.14425827]
[1744175189495,9.5237,105.1,105.02,55.4741]
[1744175189696,44.0,105.09,105.02,55.4741]
[1744175189901,44.0,105.09,105.02,86.61835827]
[1744175190300,0.06712593,105.07,105.04,0.06840857]
[1744175190497,0.06712593,105.07,105.05,9.5275]
[1744175190799,0.06712593,105.07,105.04,0.06840857]
[1744175190999,0.06712593,105.07,105.05,9.5268]
[1744175192001,0.06712593,105.07,105.04,9.59640857]
[1744175192195,44.02,105.06,105.04,0.06840857]
[1744175193002,44.02,105.06,105.05,9.5276]
[1744175193905,0.06712593,105.07,105.04,0.06840857]
[1744175195598,2.593e-05,105.07,105.06,9.5267]
[1744175195804,27.73,105.11,105.05,44.02]
[1744175196004,27.73,105.11,105.06,31.14425827]
[1744175196701,27.73,105.11,105.1,9.5231]
[1744175196900,27.73,105.11,105.05,47.5673]
[1744175197106,0.06479574,105.1,105.07,0.06195056]
[1744175197303,0.06479574,105.1,105.09,9.524]
[1744175199110,0.06479574,105.1,105.08,9.5246]
[1744175199805,0.06479574,105.1,105.07,0.06195056]
[1744175199806,44.08479574,105.1,105.07,0.06195056]
[1744175200206,9.5244,105.09,105.07,0.06195056]
[1744175200414,44.08479574,105.1,105.07,0.06195056]
[1744175200807,44.08479574,105.1,105.08,9.5243]
[1744175201017,44.08479574,105.1,105.07,0.06195056]
[1744175202708,53.60819574,105.1,105.07,9.58765056]
[1744175203011,44.08479574,105.1,105.07,0.06195056]
[1744175203202,3.6537,105.09,105.07,0.06195056]
[1744175203611,53.60829574,105.1,105.07,0.06195056]
[1744175204210,53.60829574,105.1,105.07,9.58725056]
[1744175204400,53.60829574,105.1,105.07,0.06195056]
[1744175204806,9.5241,105.09,105.07,0.06195056]
[1744175205705,48.15249574,105.1,105.01,7.5392]
[1744175206010,48.0877,105.1,105.01,7.5392]
[1744175206911,9.59250705,105.07,105.04,9.59941409]
[1744175207213,44.10660705,105.07,105.04,0.07151409]
[1744175207406,9.5276,105.05,105.04,0.07151409]
[1744175207606,4.2688,105.06,105.04,0.07151409]
[1744175207804,4.2688,105.06,104.97,7.6612]
[1744175208008,9.5285,105.04,104.97,7.6612]
[1744175208211,53.5685,105.04,104.97,7.6612]
[1744175208509,9.5299,105.03,104.97,7.6612]
[1744175208707,9.5299,105.03,104.98,62.0]
[1744175208912,44.04,105.04,105.01,9.5309]
[1744175209218,0.06303757,105.02,104.98,62.0]
[1744175209411,0.06303757,105.02,105.01,0.06548183]
[1744175210215,9.59333757,105.02,104.99,9.5324]
[1744175210715,9.59333757,105.02,104.98,9.5335]
[1744175210901,9.59333757,105.02,104.94,38.76905827]
[1744175210902,44.04,105.01,104.94,38.76905827]
[1744175211317,44.04,105.01,104.98,9.5335]
[1744175211521,0.06989563,104.99,104.98,9.5335]
[1744175213114,9.563e-05,104.99,104.98,9.5335]
[1744175213321,44.04,105.04,104.97,0.06055105]
[1744175213517,44.04,105.04,104.96,75.18425827]
[1744175213821,4.1795,105.05,105.02,9.5303]
[1744175214215,13.7072,105.05,105.02,9.5303]
[1744175214412,4.25115417,105.05,105.02,0.06405358]
[1744175214621,44.04,105.04,105.02,0.06405358]
[1744175214918,44.04,105.04,105.02,9.59395358]
[1744175215521,44.04,105.04,104.95,35.33515827]
[1744175215719,44.04,105.04,104.95,79.39515827]
[1744175216024,44.04,105.04,104.97,31.14425827]
[1744175216414,44.04,105.04,104.98,62.0]
[1744175216615,9.29,105.03,104.99,0.06707818]
[1744175216821,0.06667217,105.02,104.99,0.06707818]
[1744175217125,44.02,105.01,104.92,75.16425827]
[1744175217420,7.7246,105.0,104.9,31.14425827]
[1744175218128,17.2571,105.0,104.96,9.5352]
[1744175218317,17.2571,105.0,104.94,0.061885]
[1744175218318,7.7246,105.0,104.94,0.061885]
[1744175218513,0.06164517,104.99,104.96,0.06086557]
[1744175218716,9.59484517,104.99,104.96,0.06086557]
[1744175219323,0.06164517,104.99,104.96,9.59646557]
[1744175220119,0.06164517,104.99,104.97,9.5346]
[1744175220620,9.29,105.03,105.0,9.5317]
[1744175220827,9.29,105.03,104.97,3.6934]
[1744175221222,9.29,105.03,105.02,9.5303]
[1744175221619,44.02,105.08,105.04,9.5277]
[1744175222128,0.06649563,105.07,105.05,0.05994452]
[1744175222327,9.5284,105.05,104.97,34.83765827]
[1744175222533,44.02,105.05,104.97,34.83765827]
[1744175222824,9.5288,105.04,104.97,34.83765827]
[1744175223125,44.02,105.05,104.97,34.83765827]
[1744175223335,0.07243573,105.02,105.01,9.5305]
[1744175223525,0.07243573,105.02,104.97,34.83765827]
[1744175223829,0.07243573,105.02,105.0,0.06841598]
[1744175224226,44.09243573,105.02,105.0,0.06841598]
[1744175224429,9.5312,105.01,105.0,0.06841598]
[1744175224827,44.09243573,105.02,105.0,0.06841598]
[1744175225027,9.5312,105.01,105.0,0.06841598]
[1744175225328,44.09243573,105.02,105.0,0.06841598]
[1744175225829,53.61243573,105.02,104.94,3.5315]
[1744175226036,3.7628,105.01,104.92,44.02]
[1744175226232,3.7628,105.01,104.95,9.5362]
[1744175226432,3.7628,105.01,104.92,44.02]
[1744175226626,3.7628,105.01,104.93,31.14425827]
[1744175226824,44.02,105.02,104.99,9.5326]
[1744175227227,53.6186823,105.02,104.99,0.02412147]
[1744175227531,44.0876823,105.02,104.99,0.02412147]
[1744175228035,44.0876823,105.02,104.99,9.55672147]
[1744175228240,44.0876823,105.02,104.99,0.02412147]
[1744175228432,9.5329,105.0,104.92,47.6421]
[1744175228830,44.02,105.02,104.93,31.14425827]
[1744175229328,44.02,105.02,104.95,31.14425827]
[1744175229531,44.02,105.02,105.0,9.5319]
[1744175229731,0.06906089,105.0,104.96,7.6019]
[1744175230225,0.06906089,105.0,104.96,3.7854]
[1744175230633,9.60136089,105.0,104.95,44.04]
[1744175230837,0.84,104.99,104.95,44.04]
[1744175231347,0.84,104.99,104.96,62.0]
[1744175231638,9.3,104.98,104.95,44.04]
[1744175232033,9.36006955,104.98,104.95,44.04]
[1744175232236,9.36006955,104.98,104.96,9.5351]
[1744175232836,9.36006955,104.98,104.97,9.5349]
[1744175235351,9.36006955,104.98,104.93,38.58055827]
[1744175236441,9.36006955,104.98,104.97,9.5349]
[1744175238940,5.39816955,104.98,104.97,9.5349]
[1744175239139,0.06006955,104.98,104.97,9.5349]
[1744175239342,6.955e-05,104.98,104.97,9.5349]
[1744175240141,0.84,104.99,104.97,9.5349]
[1744175240339,67.84,105.09,104.98,44.04]
[1744175240554,71.6733,105.09,105.0,31.14425827]
[1744175240843,9.5253,105.08,105.04,9.5277]
[1744175241244,71.6733,105.09,105.01,44.04]
[1744175241445,0.06052784,105.07,105.05,0.06006955]
[1744175241945,52.24352384,105.11,105.06,31.14425827]
[1744175242149,52.24352384,105.11,105.08,31.14425827]
[1744175243049,52.31571358,105.11,105.08,31.21716951]
[1744175243435,52.31571358,105.11,105.09,62.0]
[1744175243642,52.31571358,105.11,105.1,9.5231]
[1744175244848,44.02,105.16,105.12,9.5206]
[1744175245148,44.02,105.16,105.09,62.0]
[1744175245350,9.5199,105.14,105.1,9.5226]
[1744175245948,53.5378,105.16,105.12,9.5208]
[1744175246150,0.06407124,105.13,105.12,9.5208]
[1744175248346,62.7153,105.19,105.15,9.5179]
[1744175248541,49.3,105.19,105.13,43.96]
[1744175248750,43.98,105.19,105.13,43.96]
[1744175249153,7.4767,105.2,105.13,43.96]
[1744175249546,0.06259136,105.18,105.15,0.07272178]
[1744175250553,0.06259136,105.18,105.16,9.5171]
[1744175251255,0.06259136,105.18,105.15,0.07272178]
[1744175251756,0.06259136,105.18,105.16,9.517]
[1744175252155,0.06259136,105.18,105.15,0.07272178]
[1744175252547,0.06259136,105.18,105.16,9.5176]
[1744175253151,0.06259136,105.18,105.15,9.59082178]
[1744175253856,0.06259136,105.18,105.16,9.5174]
[1744175254057,0.06259136,105.18,105.15,0.07272178]
[1744175254258,0.06259136,105.18,105.16,9.5172]
[1744175254457,0.06259136,105.18,105.15,0.07272178]
[1744175254859,0.06259136,105.18,105.16,9.5176]
[1744175255456,0.06259136,105.18,105.15,9.59092178]
[1744175256068,0.06259136,105.18,105.16,9.5176]
[1744175256451,0.06259136,105.18,105.15,0.07272178]
[1744175256654,0.06259136,105.18,105.16,9.5172]
[1744175261259,0.06259136,105.18,105.15,9.59092178]
[1744175261460,0.06259136,105.18,105.15,0.07272178]
[1744175261654,9.517,105.17,105.1,75.08425827]
[1744175261959,3.7297,105.17,105.1,75.08425827]
[1744175262557,13.2465,105.17,105.1,75.08425827]
[1744175262860,0.06754839,105.15,105.12,0.07259514]
[1744175263161,0.06754839,105.15,105.14,9.5194]
[1744175265062,0.06754839,105.15,105.13,9.5201]
[1744175265255,0.06754839,105.15,105.12,0.07259514]
[1744175265658,0.06754839,105.15,105.14,9.5194]
[1744175265851,0.06754839,105.15,105.12,0.07259514]
[1744175266257,0.06754839,105.15,105.12,9.59369514]
[1744175267161,0.06754839,105.15,105.12,0.07259514]
[1744175267864,9.5218,105.12,105.07,43.94]
[1744175268171,47.5888,105.16,105.07,43.94]
[1744175268466,43.94,105.13,105.09,9.5238]
[1744175268960,0.0630388,105.12,105.1,0.06965987]
[1744175269166,9.5850388,105.12,105.1,0.06965987]
[1744175270070,0.0630388,105.12,105.1,0.06965987]
[1744175270670,0.0630388,105.12,105.11,9.5222]
[1744175272560,3.6488,105.16,105.11,31.14425827]
[1744175273568,3.6488,105.16,105.1,105.94]
[1744175273769,0.06916037,105.15,105.12,0.06529683]
[1744175273970,0.06916037,105.15,105.14,9.5194]
[1744175275777,43.94,105.19,105.16,9.5171]
[1744175276071,7.5832,105.21,105.13,75.08425827]
[1744175276469,43.9,105.2,105.13,75.08425827]
[1744175276666,9.5154,105.19,105.15,9.5177]
[1744175276867,0.06331858,105.18,105.15,9.5874002]
[1744175277267,0.06331858,105.18,105.16,9.5176]
[1744175277468,0.06331858,105.18,105.15,0.0697002]
[1744175277675,0.06331858,105.18,105.15,9.5878002]
[1744175277972,0.06331858,105.18,105.15,0.0697002]
[1744175278375,0.06331858,105.18,105.15,9.5880002]
[1744175278979,9.57911858,105.18,105.15,9.5880002]
[1744175279279,0.06331858,105.18,105.15,9.5880002]
[1744175280477,0.06331858,105.18,105.15,0.0697002]
[1744175280880,43.9,105.23,105.19,9.5144]
[1744175281081,56.9359,105.23,105.19,9.5144]
[1744175281374,47.4241,105.23,105.2,9.514]
[1744175281578,47.4241,105.23,105.16,43.9]
[1744175281773,47.4241,105.23,105.17,31.14425827]
[1744175281979,56.9358,105.23,105.17,31.14425827]
[1744175282176,0.06470054,105.21,105.19,0.06113473]
[1744175282578,0.06470054,105.21,105.2,9.514]
[1744175282778,0.06470054,105.21,105.19,0.06113473]
[1744175284381,0.06470054,105.21,105.19,9.57563473]
[1744175284974,0.06470054,105.21,105.19,71.57563473]
[1744175285272,0.06470054,105.21,105.19,0.06113473]
[1744175285779,0.06470054,105.21,105.14,3.4827]
[1744175285982,47.4241,105.23,105.14,3.4827]
[1744175286682,0.06568881,105.2,105.17,0.0679566]
[1744175287779,0.06568881,105.2,105.17,9.5841566]
[1744175288081,0.06568881,105.2,105.17,0.0679566]
[1744175289484,0.06568881,105.2,105.17,9.5842566]
[1744175289983,0.06568881,105.2,105.17,0.0679566]
[1744175289984,9.5158,105.18,105.17,0.0679566]
[1744175290184,7.3402,105.19,105.13,43.9]
[1744175290580,7.3402,105.19,105.13,9.52]
[1744175290782,3.5129,105.18,105.1,43.9]
[1744175290978,43.9,105.17,105.1,43.9]
[1744175291184,43.9,105.17,105.11,9.5218]
[1744175291485,0.06746842,105.15,105.12,0.0671429]
[1744175292890,0.06746842,105.15,105.12,71.5879429]
[1744175293092,0.06746842,105.15,105.12,62.0671429]
[1744175293787,0.06746842,105.15,105.12,0.0671429]
[1744175294086,9.5199,105.14,105.12,0.0671429]
[1744175295279,0.06746842,105.15,105.12,0.0671429]
[1744175295788,0.06746842,105.15,105.13,9.52]
[1744175296891,0.06746842,105.15,105.12,0.0671429]
[1744175297391,0.06746842,105.15,105.14,9.5194]
[1744175298293,0.06746842,105.15,105.13,9.5199]
[1744175298592,0.06746842,105.15,105.12,0.0671429]
[1744175298894,0.06746842,105.15,105.14,9.5194]
[1744175300191,0.06746842,105.15,105.14,71.5194]
[1744175301396,0.06746842,105.15,105.14,9.5194]
[1744175302084,10.8698,105.21,105.14,40.66425827]
[1744175302284,43.9,105.25,105.17,31.14425827]
[1744175302498,43.9,105.25,105.22,9.5117]
[1744175303094,0.07224606,105.25,105.22,0.0673813]
[1744175304404,0.07224606,105.25,105.23,62.0]
[1744175304689,0.07224606,105.25,105.24,9.5104]
[1744175304893,156.73057144,105.29,105.23,93.14425827]
[1744175305095,156.73057144,105.29,105.25,9.509]
[1744175305296,156.73057144,105.29,105.24,43.88]
[1744175306096,0.065832,105.28,105.25,0.06698597]
[1744175306399,0.065832,105.28,105.27,9.5077]
[1744175306989,43.9,105.31,105.28,9.5067]
[1744175307189,43.9,105.31,105.24,47.4024]
[1744175307496,43.9,105.31,105.28,9.5067]
[1744175307696,43.9,105.31,105.24,47.4024]
[1744175308098,43.9,105.31,105.27,9.5073]
[1744175308398,0.06035664,105.29,105.26,0.06071747]
[1744175309294,0.06035664,105.29,105.27,9.507]
[1744175309495,0.06035664,105.29,105.26,0.06071747]
[1744175311501,9.56685664,105.29,105.26,0.06071747]
[1744175311700,0.06035664,105.29,105.26,0.06071747]
[1744175312004,9.56665664,105.29,105.26,0.06071747]
[1744175312193,0.06035664,105.29,105.26,0.06071747]
[1744175312498,9.5075,105.28,105.26,0.06071747]
[1744175312907,3.6055,105.28,105.26,0.06071747]
[1744175313511,0.06035664,105.29,105.26,0.06071747]
[1744175314200,0.06035664,105.29,105.27,9.5072]
[1744175314804,0.06035664,105.29,105.26,9.56891747]
[1744175315006,0.06035664,105.29,105.26,0.06071747]
[1744175315606,0.06035664,105.29,105.27,9.5077]
[1744175316208,0.06035664,105.29,105.26,9.56881747]
[1744175316409,0.06035664,105.29,105.26,0.06071747]
[1744175316907,0.06035664,105.29,105.27,9.5073]
[1744175317411,0.06035664,105.29,105.28,9.5068]
[1744175320405,3.6055,105.33,105.3,9.5045]
[1744175320703,3.6055,105.33,105.27,43.82]
[1744175320704,3.6055,105.33,105.27,74.96425827]
[1744175321207,3.6055,105.33,105.27,43.82]
[1744175321406,0.06654855,105.31,105.29,9.56989491]
[1744175322107,0.06654855,105.31,105.29,0.06439491]
[1744175322609,9.505,105.3,105.29,0.06439491]
[1744175323002,43.86654855,105.31,105.29,0.06439491]
[1744175324728,53.37104855,105.31,105.29,0.06439491]
[1744175325022,43.86654855,105.31,105.29,0.06439491]
[1744175325224,0.06654855,105.31,105.29,0.06439491]
[1744175325415,0.06654855,105.31,105.29,9.56989491]
[1744175325613,0.06654855,105.31,105.29,0.06439491]
[1744175326220,0.06654855,105.31,105.3,9.505]
[1744175326619,0.06654855,105.31,105.29,0.06439491]
[1744175327119,43.8,105.43,105.3,74.94425827]
[1744175327319,10.7911,105.4,105.33,31.14425827]
[1744175327623,10.7911,105.4,105.33,74.94425827]
[1744175328123,0.07086009,105.38,105.35,0.06596855]
[1744175328318,0.07086009,105.38,105.36,43.8]
[1744175328928,0.07086009,105.38,105.37,9.4987]
[1744175329118,16.5833,105.44,105.36,43.8]
[1744175329416,7.0905,105.44,105.36,43.8]
[1744175329814,9.4938,105.43,105.38,9.4973]
[1744175330016,7.0905,105.44,105.36,43.8]
[1744175330218,0.06811763,105.42,105.39,0.07118219]
[1744175330516,0.06811763,105.42,105.39,9.56748219]
[1744175330718,0.06811763,105.42,105.39,0.07118219]
[1744175331525,9.56281763,105.42,105.39,0.07118219]
[1744175331725,0.06811763,105.42,105.39,0.07118219]
[1744175332027,0.06811763,105.42,105.39,9.56758219]
[1744175332228,0.06811763,105.42,105.39,0.07118219]
[1744175332927,9.56281763,105.42,105.39,0.07118219]
[1744175334028,13.48281763,105.42,105.39,0.07118219]
[1744175334427,3.98811763,105.42,105.39,0.07118219]
[1744175335033,13.0794,105.41,105.36,43.8]
[1744175335832,3.5839,105.41,105.36,43.8]
[1744175336226,0.07076312,105.4,105.37,0.06734801]
[1744175337026,0.07076312,105.4,105.37,9.56584801]
[1744175337223,0.07076312,105.4,105.38,62.0]
[1744175337631,0.07076312,105.4,105.38,71.4977]
[1744175337929,0.07076312,105.4,105.38,62.0]
[1744175338430,0.07076312,105.4,105.37,0.06734801]
[1744175338633,0.07076312,105.4,105.37,9.56594801]
[1744175339032,0.07076312,105.4,105.37,0.06734801]
[1744175340131,0.07076312,105.4,105.37,9.56554801]
[1744175340329,0.07076312,105.4,105.37,0.06734801]
[1744175340934,3.92,105.42,105.37,31.21160628]
[1744175341130,60.5307,105.47,105.39,31.14425827]
[1744175341434,16.8107,105.47,105.4,105.72]
[1744175341634,16.8107,105.47,105.42,9.494]
[1744175342127,0.06802664,105.46,105.43,0.06187106]
[1744175342532,9.4924,105.44,105.43,0.06187106]
[1744175342734,3.53632664,105.46,105.4,43.72]
[1744175342927,3.4683,105.46,105.4,43.72]
[1744175343435,9.4931,105.44,105.4,43.72]
[1744175343939,0.06393322,105.43,105.41,0.06776562]
[1744175344837,0.06393322,105.43,105.42,62.0]
[1744175346337,0.06393322,105.43,105.41,0.06776562]
[1744175346935,0.06393322,105.43,105.41,9.56266562]
[1744175347137,0.06393322,105.43,105.41,0.06776562]
[1744175347442,0.06393322,105.43,105.42,9.4942]
[1744175347643,0.06393322,105.43,105.41,0.06776562]
[1744175348142,0.06393322,105.43,105.41,9.56236562]